fUST/lending_fUST_20251117
["ID","MTS","AMOUNT","RATE_DAILY","PERIOD"]
[394140030,1763317870199,-413.0,0.00032529,2]
[394140031,1763317870208,-500.0,0.00032564,7]
[394140032,1763317870218,-1360.0,0.00032575,2]
[394140033,1763317870227,-177.0,0.00032622,14]
[394140034,1763317870236,-18161.98,0.000327,7]
[394140035,1763317870248,-401.05,0.000328,4]
[394140036,1763317870257,-407.54,0.000328,7]
[394140037,1763317870267,-150.0,0.00032877,5]
[394140038,1763317870276,-500.0,0.00032877,7]
[394140039,1763317870286,-500.0,0.00032877,7]
[394140040,1763317870295,-500.0,0.00032877,7]
[394140041,1763317870305,-500.0,0.00032877,7]
[394140042,1763317870314,-500.0,0.00032877,7]
[394140043,1763317870323,-500.0,0.00032877,7]
[394140044,1763317870333,-252.27257516,0.00032877,7]
[394140045,1763317870343,-500.0,0.00032877,7]
[394140046,1763317870352,-253.41699022,0.00032877,7]
[394140047,1763317870362,-301.27,0.00032878,7]
[394140048,1763317870372,-500.0,0.00032898,7]
[394140049,1763317870381,-155.49718605,0.00033,2]
[394140050,1763317870390,-52573.68773091,0.00033,10]
[394140051,1763317870399,-88582.08738989,0.00033,2]
[394140052,1763317870409,-250.0,0.00033,7]
[394140053,1763317870419,-151.0,0.00033,31]
[394140054,1763317870428,-151.0,0.00033,31]
[394140055,1763317870437,-151.0,0.00033,31]
[394140056,1763317870446,-151.0,0.00033,31]
[394140057,1763317870456,-151.0,0.00033,31]
[394140058,1763317870466,-151.0,0.00033,31]
[394140059,1763317870475,-151.0,0.00033,31]
[394140060,1763317870484,-151.0,0.00033,31]
[394140061,1763317870493,-234.420962,0.00033,31]
[394140062,1763317870502,-151.0,0.00033,31]
[394140063,1763317870512,-151.0,0.00033,31]
[394140064,1763317870522,-151.0,0.00033,31]
[394140065,1763317870531,-445.202353,0.00033,31]
[394140066,1763317870541,-445.202353,0.00033,31]
[394140067,1763317870551,-151.0,0.00033,31]
[394140068,1763317870561,-445.202353,0.00033,31]
[394140069,1763317870571,-445.202353,0.00033,31]
[394140070,1763317870581,-151.0,0.00033,31]
[394140071,1763317870591,-151.0,0.00033,31]
[394140072,1763317870600,-151.0,0.00033,31]
[394140073,1763317870611,-21131.4892494,0.00033,30]
[394140074,1763317870620,-158.126157,0.00033,31]
[394140075,1763317870630,-190.103155,0.00033,31]
[394140076,1763317870640,-151.0,0.00033,31]
[394140077,1763317870649,-190.103155,0.00033,31]
[394140078,1763317870658,-400.59295362,0.00033,30]
[394140079,1763317870668,-297.296865,0.00033,31]
[394140080,1763317870677,-400.59295362,0.00033,10]
[394140081,1763317870687,-190.103155,0.00033,31]
[394140082,1763317870697,-190.103155,0.00033,31]
[394140083,1763317870706,-180.550553,0.00033,7]
[394140084,1763317870716,-180.550553,0.00033,7]
[394140085,1763317870725,-180.550553,0.00033,7]
[394140086,1763317870735,-180.550553,0.00033,7]
[394140087,1763317870744,-151.0,0.00033,2]
[394140088,1763317870754,-8925.31577,0.00033,31]
[394140089,1763317870763,-8925.31577,0.00033,31]
[394140090,1763317870772,-8925.31577,0.00033,31]
[394140091,1763317870781,-8925.31577,0.00033,31]
[394140092,1763317870791,-151.0,0.00033,31]
[394140093,1763317870800,-293.6236176,0.00033,31]
[394140094,1763317870810,-151.0,0.00033,31]
[394140095,1763317870819,-151.0,0.00033,31]
[394140096,1763317870833,-903.73,0.00033072,2]
[394140097,1763317870842,-500.0,0.000331,7]
[394140098,1763317870851,-201.75029183,0.00033112,10]
[394140099,1763317870861,-1460.0,0.00033123,2]
[394140100,1763317870870,-905.392276,0.00033165,2]
[394140101,1763317870880,-160.0,0.00033213,5]
[394140102,1763317870889,-1351.78,0.000333,30]
[394140103,1763317870898,-2000.0,0.00033314,7]
[394140104,1763317870910,-1000.0,0.00033337,10]
[394140105,1763317870919,-700.0,0.00033339,7]
[394140106,1763317870928,-250.0,0.00033425,5]
[394140107,1763317870937,-1000.0,0.00033425,120]
[394140108,1763317870947,-864.0,0.00033446,30]
[394140109,1763317870956,-1000.0,0.00033474,10]
[394140110,1763317870965,-325.33,0.0003351,7]
[394140111,1763317870974,-1000.0,0.00033611,10]
[394140112,1763317870984,-1560.0,0.00033671,2]
[394140113,1763317870993,-1000.0,0.00033748,10]
[394140114,1763317871002,-500.0,0.00033748,7]
[394140115,1763317871012,-1000.0,0.00033885,10]
[394140116,1763317871021,-400.59295362,0.000339,30]
[394140117,1763317871031,-401.4061014,0.00033904,120]
[394140118,1763317871040,-10000.0,0.00033922,2]
[394140119,1763317871050,-172.14583659,0.00033973,5]
[394140120,1763317871059,-350.0,0.00033973,5]
[394140121,1763317871069,-1000.0,0.00033973,120]
[394140122,1763317871078,-5084.67333893,0.0003398,2]
[394140123,1763317871087,-10397.33624919,0.00034,5]
[394140124,1763317871096,-35320.98239802,0.00034,2]
[394140125,1763317871106,-200.0,0.00034,120]
[394140126,1763317871115,-407.54,0.00034,7]
[394140127,1763317871124,-18161.98,0.00034,14]
[394140128,1763317871133,-152.639447,0.00034,31]
[394140129,1763317871142,-1000.0,0.00034022,10]
[394140130,1763317871151,-332.9048667,0.00034032,30]
[394140131,1763317871161,-500.0,0.00034079,7]
[394140132,1763317871170,-500.0,0.000341,7]
[394140133,1763317871259,-20000.0,0.0003412,20]
[394140134,1763317871268,-1000.0,0.00034159,10]
[394140135,1763317871278,-903.73,0.00034168,2]
[394140136,1763317871288,-1660.0,0.00034219,2]
[394140137,1763317871297,-500.0,0.00034276,7]
[394140138,1763317871307,-1000.0,0.00034296,10]
[394140139,1763317871316,-160.0,0.00034354,6]
[394140140,1763317871326,-500.0,0.00034389,7]
[394140141,1763317871335,-1351.78,0.000344,30]
[394140142,1763317871344,-1000.0,0.00034433,10]
[394140143,1763317871353,-500.0,0.0003451,7]
[394140144,1763317871362,-150.00677906,0.00034521,5]
[394140145,1763317871371,-1000.0,0.00034521,120]
[394140146,1763317871381,-700.0,0.0003454,7]
[394140147,1763317871390,-1000.0,0.0003457,10]
[394140148,1763317871399,-1760.0,0.00034767,2]
[394140149,1763317871408,-151.0,0.000348,31]
[394140150,1763317871418,-151.0,0.000348,31]
[394140151,1763317871427,-151.0,0.000348,31]
[394140152,1763317871437,-151.0,0.000348,31]
[394140153,1763317871446,-6214.4424842,0.00034871,2]
[394140154,1763317871456,-10727.35286251,0.00035,2]
[394140155,1763317871467,-658.42073338,0.00035,2]
[394140156,1763317871476,-161.08,0.00035,14]
[394140157,1763317871485,-159.0,0.00035,120]
[394140158,1763317871495,-258.25659624,0.00035,120]
[394140159,1763317871504,-1046.69665417,0.00035,120]
[394140160,1763317871514,-250.0,0.00035,7]
[394140161,1763317871523,-709.25534647,0.00035,13]
[394140162,1763317871532,-700.0,0.00035065,30]
[394140163,1763317871541,-1000.0,0.00035068,120]
[394140164,1763317871551,-500.0,0.000351,7]
[394140165,1763317871561,-158.0,0.00035123,75]
[394140166,1763317871570,-500.0,0.00035139,30]
[394140167,1763317871579,-500.0,0.00035188,30]
[394140168,1763317871589,-407.54,0.000352,7]
[394140169,1763317871599,-500.0,0.0003524,30]
[394140170,1763317871609,-903.73,0.00035264,2]
[394140171,1763317871618,-151.0,0.000353,17]
[394140172,1763317871627,-1860.0,0.00035315,2]
[394140173,1763317871637,-18161.98,0.000354,14]
[394140174,1763317871647,-800.0,0.00035456,2]
[394140175,1763317871656,-160.0,0.00035496,7]
[394140176,1763317871666,-150000.0,0.000355,2]
[394140177,1763317871675,-151.0,0.000355,31]
[394140178,1763317871684,-151.0,0.000355,31]
[394140179,1763317871694,-151.0,0.000355,31]
[394140180,1763317871703,-151.0,0.000355,31]
[394140181,1763317871713,-151.0,0.000355,31]
[394140182,1763317871723,-151.0,0.000355,31]
[394140183,1763317871732,-151.0,0.000355,31]
[394140184,1763317871742,-151.0,0.000355,31]
[394140185,1763317871751,-151.0,0.000355,31]
[394140186,1763317871761,-151.0,0.000355,31]
[394140187,1763317871771,-445.202353,0.000355,31]
[394140188,1763317871781,-445.202353,0.000355,31]
[394140189,1763317871790,-151.0,0.000355,31]
[394140190,1763317871799,-445.202353,0.000355,31]
[394140191,1763317871808,-445.202353,0.000355,31]
[394140192,1763317871819,-151.0,0.000355,31]
[394140193,1763317871831,-151.0,0.000355,31]
[394140194,1763317871840,-190.103155,0.000355,31]
[394140195,1763317871850,-151.0,0.000355,31]
[394140196,1763317871859,-190.103155,0.000355,31]
[394140197,1763317871871,-190.103155,0.000355,31]
[394140198,1763317871880,-190.103155,0.000355,31]
[394140199,1763317871889,-180.550553,0.000355,7]
[394140200,1763317871899,-180.550553,0.000355,7]
[394140201,1763317871908,-180.550553,0.000355,7]
[394140202,1763317871917,-180.550548,0.000355,7]
[394140203,1763317871927,-8925.31577,0.000355,31]
[394140204,1763317871936,-8925.31577,0.000355,31]
[394140205,1763317871945,-8925.31577,0.000355,31]
[394140206,1763317871954,-8925.31577184,0.000355,31]
[394140207,1763317871963,-151.0,0.000355,31]
[394140208,1763317871973,-151.0,0.000355,31]
[394140209,1763317871982,-583.065,0.00035529,2]
[394140210,1763317871991,-500.0,0.00035535,30]
[394140211,1763317872001,-1351.78,0.000356,30]
[394140212,1763317872010,-1000.0,0.00035616,120]
[394140213,1763317872020,-500.0,0.00035616,90]
[394140214,1763317872029,-215.19079071,0.00035616,5]
[394140215,1763317872039,-160.173842,0.00035665,20]
[394140216,1763317872048,-800.0,0.0003575,7]
[394140217,1763317872058,-500.0,0.00035753,90]
[394140218,1763317872067,-152.06,0.00035784,60]
[394140219,1763317872076,-1960.0,0.00035863,2]
[394140220,1763317872086,-700.0,0.00035878,30]
[394140221,1763317872095,-152.06,0.00035884,60]
[394140222,1763317872105,-500.0,0.0003589,90]
[394140223,1763317872114,-157.16,0.00035894,60]
[394140224,1763317872123,-431.01802692,0.00035904,120]
[394140225,1763317872132,-283.62295102,0.00035918,16]
[394140226,1763317872141,-152.06,0.00035984,60]
[394140227,1763317872151,-157.16,0.00035994,60]
[394140228,1763317872160,-259.63076541,0.00036,2]
[394140229,1763317872174,-200.0,0.00036,120]
[394140230,1763317872184,-24997.38361321,0.00036,30]
[394140231,1763317872195,-500.0,0.00036027,90]
[394140232,1763317872205,-152.06,0.00036084,60]
[394140233,1763317872215,-157.16,0.00036094,60]
[394140234,1763317872224,-160.173842,0.00036154,20]
[394140235,1763317872236,-160.173845,0.00036154,20]
[394140236,1763317872247,-509.18569316,0.00036164,90]
[394140237,1763317872256,-1000.0,0.00036164,120]
[394140238,1763317872266,-151.0,0.00036164,31]
[394140239,1763317872275,-152.06,0.00036184,60]
[394140240,1763317872285,-157.16,0.00036194,60]
[394140241,1763317872294,-204.36017938,0.0003621,2]
[394140242,1763317872304,-1000.0,0.00036219,10]
[394140243,1763317872313,-626.0,0.00036219,10]
[394140244,1763317872323,-152.06,0.00036284,60]
[394140245,1763317872333,-261.8496062,0.00036292,30]
[394140246,1763317872343,-201.3720744,0.00036292,30]
[394140247,1763317872352,-323.0828038,0.00036292,30]
[394140248,1763317872361,-191.3677212,0.00036292,30]
[394140249,1763317872371,-191.3677212,0.00036292,30]
[394140250,1763317872381,-191.3677212,0.00036292,30]
[394140251,1763317872391,-191.3677212,0.00036292,30]
[394140252,1763317872400,-191.3677212,0.00036292,30]
[394140253,1763317872409,-191.3677212,0.00036292,30]
[394140254,1763317872419,-191.3677212,0.00036292,30]
[394140255,1763317872428,-157.16,0.00036294,60]
[394140256,1763317872437,-1000.0,0.00036356,10]
[394140257,1763317872447,-903.73,0.0003636,2]
[394140258,1763317872456,-152.06,0.00036384,60]
[394140259,1763317872466,-157.16,0.00036394,60]
[394140260,1763317872475,-2060.0,0.00036411,2]
[394140261,1763317872485,-500.0,0.00036433,30]
[394140262,1763317872494,-152.06,0.00036484,60]
[394140263,1763317872504,-1000.0,0.00036493,10]
[394140264,1763317872514,-157.16,0.00036494,60]
[394140265,1763317872523,-700.0,0.00036554,30]
[394140266,1763317872533,-800.0,0.00036564,7]
[394140267,1763317872543,-500.0,0.00036565,30]
[394140268,1763317872552,-152.06,0.00036584,60]
[394140269,1763317872562,-157.16,0.00036594,60]
[394140270,1763317872571,-1000.0,0.0003663,10]
[394140271,1763317872581,-160.0,0.00036637,8]
[394140272,1763317872591,-800.0,0.00036655,7]
[394140273,1763317872601,-1322.0020836,0.00036657,7]
[394140274,1763317872611,-152.06,0.00036684,60]
[394140275,1763317872620,-1000.0,0.00036688,10]
[394140276,1763317872629,-157.16,0.00036694,60]
[394140277,1763317872639,-155.46525249,0.000367,5]
[394140278,1763317872648,-1000.0,0.00036712,120]
[394140279,1763317872659,-1000.0,0.00036767,10]
[394140280,1763317872669,-152.06,0.00036784,60]
[394140281,1763317872678,-1000.0,0.0003679,30]
[394140282,1763317872688,-157.16,0.00036794,60]
[394140283,1763317872698,-1000.0,0.00036825,10]
[394140284,1763317872708,-152.15,0.00036884,60]
[394140285,1763317872718,-157.16,0.00036894,60]
[394140286,1763317872729,-700.0,0.00036901,30]
[394140287,1763317872739,-1000.0,0.00036904,10]
[394140288,1763317872754,-1477.28847898,0.00036959,2]
[394140289,1763317872765,-1000.0,0.00036962,10]
[394140290,1763317872777,-157.16,0.00036994,60]
[394140291,1763317872793,-407.54,0.00037,7]
[394140292,1763317872805,-400.59295362,0.00037,10]
[394140293,1763317872817,-302.4153,0.00037006,2]
[394140294,1763317872918,-306.74879,0.00037018,2]
[394140295,1763317872929,-1000.0,0.00037041,10]
[394140296,1763317872941,-157.16,0.00037094,60]
[394140297,1763317872952,-302.0,0.00037097,2]
[394140298,1763317872963,-1000.0,0.00037099,10]
[394140299,1763317872974,-302.0,0.00037107,2]
[394140300,1763317872987,-302.0,0.00037107,2]
[394140301,1763317873008,-302.0,0.00037109,2]
[394140302,1763317873020,-157.16,0.00037194,60]
[394140303,1763317873031,-1000.0,0.00037236,10]
[394140304,1763317873041,-1000.0,0.0003726,120]
[394140305,1763317873052,-157.16,0.00037294,60]
[394140306,1763317873063,-1000.0,0.00037373,10]
[394140307,1763317873073,-157.31637529,0.00037394,60]
[394140308,1763317873085,-70000.0,0.000374,10]
[394140309,1763317873098,-903.73,0.00037456,2]
[394140310,1763317873109,-1000.0,0.0003751,10]
[394140311,1763317873119,-1000.0,0.00037647,10]
[394140312,1763317873130,-500.0,0.00037686,30]
[394140313,1763317873141,-6214.4424842,0.00037717,2]
[394140314,1763317873151,-160.0,0.00037779,9]
[394140315,1763317873161,-1000.0,0.00037784,10]
[394140316,1763317873171,-1000.0,0.000378,25]
[394140317,1763317873180,-1000.0,0.00037808,120]
[394140318,1763317873191,-923.94224487,0.00037828,42]
[394140319,1763317873200,-700.0,0.00037832,30]
[394140320,1763317873210,-800.0,0.00037866,7]
[394140321,1763317873220,-460.62995243,0.00037904,120]
[394140322,1763317873229,-1000.0,0.00037921,10]
[394140323,1763317873239,-2000.0,0.00038,20]
[394140324,1763317873256,-600.0,0.00038,20]
[394140325,1763317873266,-200.0,0.00038,120]
[394140326,1763317873276,-1427.6474017,0.00038,30]
[394140327,1763317873286,-1001.85221699,0.00038,30]
[394140328,1763317873296,-1000.0,0.00038,120]
[394140329,1763317873306,-1351.78,0.00038,30]
[394140330,1763317873316,-150.0,0.00038005,120]
[394140331,1763317873326,-151.0,0.00038006,31]
[394140332,1763317873336,-151.0,0.00038006,31]
[394140333,1763317873346,-223.419296,0.00038006,31]
[394140334,1763317873356,-151.0,0.00038006,31]
[394140335,1763317873365,-151.0,0.00038006,31]
[394140336,1763317873375,-151.0,0.00038006,31]
[394140337,1763317873385,-151.0,0.00038006,31]
[394140338,1763317873395,-151.0,0.00038006,31]
[394140339,1763317873405,-151.0,0.00038006,31]
[394140340,1763317873416,-151.0,0.00038006,31]
[394140341,1763317873426,-151.0,0.00038006,31]
[394140342,1763317873436,-151.0,0.00038006,31]
[394140343,1763317873445,-151.0,0.00038006,31]
[394140344,1763317873455,-282.14561,0.00038006,31]
[394140345,1763317873465,-151.0,0.00038006,31]
[394140346,1763317873475,-151.0,0.00038006,31]
[394140347,1763317873485,-151.0,0.00038006,31]
[394140348,1763317873498,-151.0,0.00038006,31]
[394140349,1763317873508,-255.790815,0.00038006,31]
[394140350,1763317873518,-151.0,0.00038018,31]
[394140351,1763317873527,-151.0,0.00038018,31]
[394140352,1763317873537,-151.0,0.00038018,31]
[394140353,1763317873547,-151.0,0.00038018,31]
[394140354,1763317873557,-151.0,0.00038018,31]
[394140355,1763317873567,-151.0,0.00038018,31]
[394140356,1763317873577,-151.0,0.00038018,31]
[394140357,1763317873587,-151.0,0.00038018,31]
[394140358,1763317873597,-213.562915,0.00038018,31]
[394140359,1763317873607,-151.0,0.00038018,31]
[394140360,1763317873618,-151.0,0.00038018,31]
[394140361,1763317873628,-172.554805,0.00038018,31]
[394140362,1763317873638,-151.0,0.00038018,31]
[394140363,1763317873649,-445.202353,0.00038018,31]
[394140364,1763317873660,-445.202353,0.00038018,31]
[394140365,1763317873670,-445.202353,0.00038018,31]
[394140366,1763317873680,-445.202353,0.00038018,31]
[394140367,1763317873691,-151.0,0.00038018,31]
[394140368,1763317873701,-445.202353,0.00038018,31]
[394140369,1763317873711,-445.202353,0.00038018,31]
[394140370,1763317873722,-445.202353,0.00038018,31]
[394140371,1763317873733,-151.0,0.00038018,31]
[394140372,1763317873743,-445.202358,0.00038018,31]
[394140373,1763317873755,-259.856345,0.00038018,31]
[394140374,1763317873764,-190.103155,0.00038018,31]
[394140375,1763317873773,-190.103155,0.00038018,31]
[394140376,1763317873783,-190.103155,0.00038018,31]
[394140377,1763317873792,-190.103156,0.00038018,31]
[394140378,1763317873802,-10003.3638784,0.00038018,2]
[394140379,1763317873812,-3910.87265853,0.00038018,2]
[394140380,1763317873823,-2107.11432581,0.00038018,2]
[394140381,1763317873832,-1500.0,0.00038018,3]
[394140382,1763317873845,-1203.42641265,0.00038018,2]
[394140383,1763317873855,-3792.33783613,0.00038018,2]
[394140384,1763317873866,-2974.01184096,0.00038018,2]
[394140385,1763317873875,-2109.78271503,0.00038018,2]
[394140386,1763317873885,-150.0,0.00038018,2]
[394140387,1763317873894,-4949.92322926,0.00038018,2]
[394140388,1763317873904,-242.32538425,0.00038018,10]
[394140389,1763317873914,-1104.34896298,0.00038018,10]
[394140390,1763317873925,-1572.23963323,0.00038018,7]
[394140391,1763317873934,-1997.16327195,0.00038018,7]
[394140392,1763317873944,-498.0,0.00038018,7]
[394140393,1763317873953,-155.46365921,0.00038018,7]
[394140394,1763317873963,-2537.02595707,0.00038018,7]
[394140395,1763317873972,-177.78542493,0.00038018,7]
[394140396,1763317873982,-1954.12607013,0.00038018,5]
[394140397,1763317873991,-156.90955273,0.00038018,2]
[394140398,1763317874007,-196.4990265,0.00038018,12]
[394140399,1763317874016,-26210.53595593,0.00038018,12]
[394140400,1763317874025,-230342.73726487,0.00038018,7]
[394140402,1763318106341,250.0,0.00038018,120]
[394140403,1763318106953,250.0,0.00038018,120]
[394140404,1763318107547,250.0,0.00038018,120]
[394140405,1763318108148,250.0,0.00038018,120]
[394140406,1763318109295,250.0,0.00038018,120]
[394140407,1763318109888,250.0,0.00038018,120]
[394140408,1763318110526,250.0,0.00038018,120]
[394140409,1763318111171,250.0,0.00038018,120]
[394140410,1763318111783,250.0,0.00038018,120]
[394140411,1763318112417,250.0,0.00038018,120]
[394140412,1763318113086,250.0,0.00038018,120]
[394140413,1763318113763,250.0,0.00038018,120]
[394140414,1763318114376,250.0,0.00038018,120]
[394140415,1763318114982,250.0,0.00038018,120]
[394140416,1763318115695,250.0,0.00038018,120]
[394140417,1763318116210,250.0,0.00038018,120]
[394140418,1763318116834,250.0,0.00038018,120]
[394140419,1763318117439,250.0,0.00038018,120]
[394140420,1763318118076,250.0,0.00038018,120]
[394140421,1763318118700,250.0,0.00038018,120]
[394140422,1763318379184,150.0,0.00037976,20]
[394140423,1763318533235,155.0,0.0003287,120]
[394140424,1763318708903,250.0,0.00037976,120]
[394140425,1763318709599,250.0,0.00037976,120]
[394140426,1763318710221,250.0,0.00037976,120]
[394140427,1763318710835,250.0,0.00037976,120]
[394140428,1763318711481,250.0,0.00037976,120]
[394140429,1763318712080,250.0,0.00037976,120]
[394140430,1763318712741,250.0,0.00037976,120]
[394140431,1763318713367,250.0,0.00037976,120]
[394140432,1763318714010,250.0,0.00037976,120]
[394140433,1763318714638,250.0,0.00037976,120]
[394140434,1763318715240,250.0,0.00037976,120]
[394140435,1763318715992,250.0,0.00037976,120]
[394140436,1763318716635,250.0,0.00037976,120]
[394140437,1763318717274,250.0,0.00037976,120]
[394140438,1763318717912,250.0,0.00037976,120]
[394140439,1763318718531,250.0,0.00037976,120]
[394140440,1763318719159,250.0,0.00037976,120]
[394140441,1763318719810,250.0,0.00037976,120]
[394140442,1763318720457,250.0,0.00037976,120]
[394140443,1763318721081,250.0,0.00037976,120]
[394140444,1763318877419,-150.0,0.00023961,2]
[394140445,1763318877442,-1218.0,0.00023987,2]
[394140446,1763318877464,-400.59295362,0.00024019,2]
[394140447,1763318877489,-796.42,0.00024042,2]
[394140448,1763318877513,-600.0,0.0002452,20]
[394140449,1763318877537,-177.0,0.00025961,2]
[394140450,1763318877561,-302.24285071,0.00026763,2]
[394140451,1763318877767,-720.0,0.00026972,30]
[394140452,1763318877792,-202.12735642,0.00027644,2]
[394140453,1763318877816,-204.0,0.00027961,2]
[394140454,1763318877839,-202.12735642,0.00028619,2]
[394140455,1763318877864,-231.8703132,0.0002895,2]
[394140456,1763318877888,-656.99127554,0.00029413,2]
[394140457,1763318877910,-656.99127554,0.00029498,5]
[394140458,1763318877933,-300.0,0.00029582,2]
[394140459,1763318877956,-656.99127554,0.00029583,9]
[394140460,1763318877977,-202.12735642,0.00029593,2]
[394140461,1763318878000,-656.99127554,0.00029669,13]
[394140462,1763318878024,-239.0,0.00029669,30]
[394140463,1763318878046,-656.99127554,0.00029754,16]
[394140464,1763318878068,-656.99127554,0.0002984,20]
[394140465,1763318878091,-656.99127554,0.00029925,24]
[394140466,1763318878115,-231.0,0.00029961,2]
[394140467,1763318878137,-656.99127554,0.00030011,28]
[394140468,1763318878158,-656.99127554,0.00030096,31]
[394140469,1763318878182,-656.99127554,0.00030181,35]
[394140470,1763318878204,-656.99127554,0.00030267,39]
[394140471,1763318878226,-656.99127554,0.00030352,42]
[394140472,1763318878249,-656.99127554,0.00030438,46]
[394140473,1763318878272,-500.0,0.00030508,2]
[394140474,1763318878294,-500.0,0.00030508,2]
[394140475,1763318878320,-500.0,0.00030508,2]
[394140476,1763318878343,-500.0,0.00030508,2]
[394140477,1763318878364,-500.0,0.00030508,2]
[394140478,1763318878385,-500.0,0.00030508,2]
[394140479,1763318878409,-500.0,0.00030508,2]
[394140480,1763318878441,-500.0,0.00030508,2]
[394140481,1763318878472,-500.0,0.00030508,2]
[394140482,1763318878496,-500.0,0.00030508,2]
[394140483,1763318878520,-500.0,0.00030508,2]
[394140484,1763318878543,-500.0,0.00030508,2]
[394140485,1763318878567,-500.0,0.00030508,2]
[394140486,1763318878594,-500.0,0.00030508,2]
[394140487,1763318878621,-500.0,0.00030508,2]
[394140488,1763318878644,-500.0,0.00030508,2]
[394140489,1763318878669,-500.0,0.00030508,2]
[394140490,1763318878694,-500.0,0.00030508,2]
[394140491,1763318878719,-500.0,0.00030508,2]
[394140492,1763318878744,-500.0,0.00030508,2]
[394140493,1763318878766,-500.0,0.00030508,2]
[394140494,1763318878791,-500.0,0.00030508,2]
[394140495,1763318878816,-500.0,0.00030508,2]
[394140496,1763318878838,-533.15444379,0.00030508,2]
[394140497,1763318878865,-500.0,0.00030508,2]
[394140498,1763318878890,-500.0,0.00030508,2]
[394140499,1763318878914,-500.0,0.00030508,2]
[394140500,1763318878941,-500.0,0.00030508,2]
[394140501,1763318878966,-500.0,0.00030508,2]
[394140502,1763318878995,-500.0,0.00030508,2]
[394140503,1763318879019,-500.0,0.00030508,2]
[394140504,1763318879043,-500.0,0.00030508,2]
[394140505,1763318879068,-500.0,0.00030508,2]
[394140506,1763318879091,-500.0,0.00030508,2]
[394140507,1763318879114,-500.0,0.00030508,2]
[394140508,1763318879137,-500.0,0.00030508,2]
[394140509,1763318879160,-353.71667903,0.00030508,2]
[394140510,1763318879186,-650.0,0.00030508,2]
[394140511,1763318879210,-500.0,0.00030508,2]
[394140512,1763318879236,-500.0,0.00030508,2]
[394140513,1763318879259,-500.0,0.00030508,2]
[394140514,1763318879282,-500.0,0.00030508,2]
[394140515,1763318879307,-500.0,0.00030508,2]
[394140516,1763318879330,-550.0,0.00030508,2]
[394140517,1763318879355,-500.0,0.00030508,2]
[394140518,1763318879378,-500.0,0.00030508,2]
[394140519,1763318879404,-500.0,0.00030508,2]
[394140520,1763318879429,-500.0,0.00030508,2]
[394140521,1763318879453,-500.0,0.00030508,2]
[394140522,1763318879477,-500.0,0.00030508,2]
[394140523,1763318879501,-500.0,0.00030508,2]
[394140524,1763318879525,-500.0,0.00030508,2]
[394140525,1763318879549,-500.0,0.00030508,2]
[394140526,1763318879573,-500.0,0.00030508,2]
[394140527,1763318879598,-500.0,0.00030508,2]
[394140528,1763318879624,-500.0,0.00030508,2]
[394140529,1763318879651,-500.0,0.00030508,2]
[394140530,1763318879679,-500.0,0.00030508,2]